lending/lending_fUSD_20240809
["ID","MTS","AMOUNT","RATE_DAILY","PERIOD"]
[334524907,1723173095519,-500.0,0.00024393,5]
[334524908,1723173095528,-593.74,0.00024393,5]
[334524909,1723173095538,-843.29,0.00024393,5]
[334524910,1723173095548,-500.0,0.00024393,5]
[334524911,1723173095558,-500.0,0.00024393,5]
[334524912,1723173095567,-500.0,0.00024393,5]
[334524913,1723173095577,-500.0,0.00024393,5]
[334524914,1723173095586,-838.25,0.00024393,5]
[334524915,1723173095596,-753.85,0.00024393,5]
[334524916,1723173095605,-701.47,0.00024393,5]
[334524917,1723173095614,-880.65,0.00024393,5]
[334524918,1723173095624,-958.51,0.00024393,5]
[334524919,1723173095633,-1790.02,0.00024393,5]
[334524920,1723173095642,-637.63,0.00024393,5]
[334524921,1723173095651,-723.07,0.00024393,5]
[334524922,1723173095660,-560.88,0.00024393,5]
[334524923,1723173095670,-535.52,0.00024393,5]
[334524924,1723173095679,-1290.79,0.00024393,5]
[334524925,1723173095689,-816.35,0.00024393,5]
[334524926,1723173095699,-1131.27,0.00024393,5]
[334524927,1723173095708,-810.07,0.00024393,5]
[334524928,1723173095717,-500.0,0.00024393,5]
[334524929,1723173095726,-2304.74,0.00024393,5]
[334524930,1723173095736,-500.0,0.00024393,5]
[334524931,1723173095752,-940.54,0.00024393,5]
[334524932,1723173095762,-1026.06,0.00024393,5]
[334524933,1723173095771,-500.0,0.00024393,5]
[334524934,1723173095780,-500.0,0.00024393,5]
[334524935,1723173095789,-500.0,0.00024393,5]
[334524936,1723173095799,-500.0,0.00024393,5]
[334524937,1723173095808,-2267.83,0.00024393,5]
[334524938,1723173095818,-745.32,0.00024393,5]
[334524939,1723173095827,-858.69,0.00024393,5]
[334524940,1723173095837,-621.7,0.00024393,5]
[334524941,1723173095847,-1365.06,0.00024393,5]
[334524942,1723173095858,-1897.92,0.00024393,5]
[334524943,1723173095868,-612.32,0.00024393,5]
[334524944,1723173095877,-500.0,0.00024393,5]
[334524945,1723173095887,-1478.11,0.00024393,5]
[334524946,1723173095896,-500.0,0.00024393,5]
[334524947,1723173095906,-554.61,0.00024393,5]
[334524948,1723173095915,-500.0,0.00024393,5]
[334524949,1723173095925,-914.26,0.00024393,5]
[334524950,1723173095934,-500.0,0.00024393,5]
[334524951,1723173095943,-1516.34,0.00024393,5]
[334524952,1723173095953,-1719.92,0.00024393,5]
[334524953,1723173095963,-1075.16,0.00024393,5]
[334524954,1723173095973,-2476.74,0.00024393,5]
[334524955,1723173095983,-2084.94,0.00024393,5]
[334524956,1723173096112,-1168.69,0.00024393,5]
[334524957,1723173096344,-913.05,0.00024393,5]
[334524958,1723173096354,-500.0,0.00024393,5]
[334524959,1723173096364,-1771.96,0.00024393,5]
[334524960,1723173096374,-2058.38,0.00024393,5]
[334524961,1723173096384,-500.0,0.00024393,5]
[334524962,1723173096395,-500.0,0.00024393,5]
[334524963,1723173096405,-1446.58,0.00024393,5]
[334524964,1723173096414,-2283.75,0.00024393,5]
[334524965,1723173096424,-555.7,0.00024393,5]
[334524966,1723173096433,-587.54,0.00024393,5]
[334524967,1723173096443,-1933.72,0.00024393,5]
[334524968,1723173096453,-2360.3,0.00024393,5]
[334524969,1723173096462,-500.0,0.00024393,5]
[334524970,1723173096472,-634.45,0.00024393,5]
[334524971,1723173096482,-955.44,0.00024393,5]
[334524972,1723173096492,-849.58,0.00024393,5]
[334524973,1723173096502,-598.24,0.00024393,5]
[334524974,1723173096512,-762.01,0.00024393,5]
[334524975,1723173096522,-1491.08,0.00024393,5]
[334524976,1723173096532,-729.35,0.00024393,5]
[334524977,1723173096541,-728.07,0.00024393,5]
[334524978,1723173096551,-2164.79,0.00024393,5]
[334524979,1723173096561,-1735.62,0.00024393,5]
[334524980,1723173096571,-2073.19,0.00024393,5]
[334524981,1723173096580,-507.23,0.00024393,5]
[334524982,1723173096590,-500.0,0.00024393,5]
[334524983,1723173096599,-3082.71,0.00024393,5]
[334524984,1723173096609,-931.62,0.00024393,5]
[334524985,1723173096619,-1366.36,0.00024393,5]
[334524986,1723173096628,-1421.12,0.00024393,5]
[334524987,1723173096638,-605.71,0.00024393,5]
[334524988,1723173096648,-569.12,0.00024393,5]
[334524989,1723173096659,-500.0,0.00024393,5]
[334524990,1723173096668,-2152.11,0.00024393,5]
[334524991,1723173096677,-500.0,0.00024393,5]
[334524992,1723173096687,-618.25,0.00024393,5]
[334524993,1723173096698,-684.84,0.00024393,5]
[334524994,1723173096707,-413.59878737,0.00024393,5]
[334524995,1723173096718,-1090.63,0.00024393,5]
[334524996,1723173096727,-889.01,0.00024393,5]
[334524997,1723173096736,-1225.27,0.00024394,5]
[334524998,1723173096745,-1225.27,0.00024394,5]
[334524999,1723173096755,-500.0,0.00024394,5]
[334525000,1723173096764,-500.0,0.00024394,5]
[334525001,1723173096773,-515.66,0.00024394,5]
[334525002,1723173096783,-515.66,0.00024394,5]
[334525003,1723173096793,-500.0,0.00024394,5]
[334525004,1723173096802,-500.0,0.00024394,5]
[334525005,1723173096812,-500.0,0.00024394,5]
[334525006,1723173096821,-500.0,0.00024394,5]
[334525007,1723173096831,-739.59,0.00024394,5]
[334525008,1723173096840,-739.59,0.00024394,5]
[334525009,1723173096850,-500.0,0.00024394,5]
[334525010,1723173096860,-500.0,0.00024394,5]
[334525011,1723173096869,-728.64,0.00024394,5]
[334525012,1723173096879,-728.64,0.00024394,5]
[334525013,1723173096889,-1126.08,0.00024394,5]
[334525014,1723173096899,-1126.08,0.00024394,5]
[334525015,1723173096908,-538.65,0.00024394,5]
[334525016,1723173096918,-500.0,0.00024394,2]
[334525017,1723173096927,-538.65,0.00024394,5]
[334525018,1723173096937,-1208.41,0.00024394,5]
[334525019,1723173096948,-1208.41,0.00024394,5]
[334525020,1723173096958,-566.76,0.00024394,5]
[334525021,1723173096968,-566.76,0.00024394,5]
[334525022,1723173096979,-227.32149354,0.00024394,5]
[334525023,1723173096989,-1083.97,0.00024394,5]
[334525024,1723173096999,-1083.97,0.00024394,5]
[334525025,1723173097008,-500.0,0.00024394,5]
[334525026,1723173097018,-500.0,0.00024394,5]
[334525027,1723173097029,-500.0,0.00024394,5]
[334525028,1723173097039,-500.0,0.00024394,5]
[334525029,1723173097049,-500.0,0.00024394,5]
[334525030,1723173097060,-500.0,0.00024394,5]
[334525031,1723173097069,-633.29,0.00024394,5]
[334525032,1723173097078,-633.29,0.00024394,5]
[334525033,1723173097089,-500.0,0.00024394,5]
[334525034,1723173097100,-500.0,0.00024394,5]
[334525035,1723173097110,-500.0,0.00024394,5]
[334525036,1723173097120,-151.10123674,0.00024394,5]
[334525037,1723173097132,-717.63,0.00024394,5]
[334525038,1723173097141,-717.63,0.00024394,5]
[334525039,1723173097151,-703.95,0.00024394,5]
[334525040,1723173097160,-703.95,0.00024394,5]
[334525041,1723173097170,-589.38,0.00024394,5]
[334525042,1723173097180,-589.38,0.00024394,5]
[334525043,1723173097190,-500.0,0.00024394,5]
[334525044,1723173097201,-500.0,0.00024394,5]
[334525045,1723173097217,-500.0,0.00024394,5]
[334525046,1723173097227,-500.0,0.00024394,5]
[334525047,1723173097236,-575.17,0.00024394,5]
[334525048,1723173097246,-575.17,0.00024394,5]
[334525049,1723173097255,-833.58,0.00024394,5]
[334525050,1723173097265,-500.0,0.00024394,5]
[334525051,1723173097274,-500.0,0.00024394,5]
[334525052,1723173097283,-593.74,0.00024394,5]
[334525053,1723173097293,-593.74,0.00024394,5]
[334525054,1723173097303,-838.22,0.00024394,5]
[334525055,1723173097311,-843.29,0.00024394,5]
[334525056,1723173097321,-843.29,0.00024394,5]
[334525057,1723173097330,-500.0,0.00024394,5]
[334525058,1723173097339,-500.0,0.00024394,5]
[334525059,1723173097349,-500.0,0.00024394,5]
[334525060,1723173097359,-500.0,0.00024394,5]
[334525061,1723173097369,-500.0,0.00024394,5]
[334525062,1723173097378,-500.0,0.00024394,5]
[334525063,1723173097388,-403.54772274,0.00024394,5]
[334525064,1723173097398,-150.0,0.00024394,2]
[334525065,1723173097407,-838.25,0.00024394,5]
[334525066,1723173097417,-838.25,0.00024394,5]
[334525067,1723173097427,-713.13,0.00024394,5]
[334525068,1723173097436,-1285.69,0.00024394,5]
[334525069,1723173097445,-753.85,0.00024394,5]
[334525070,1723173097455,-753.85,0.00024394,5]
[334525071,1723173097465,-500.0,0.00024394,5]
[334525072,1723173097475,-701.47,0.00024394,5]
[334525073,1723173097484,-701.47,0.00024394,5]
[334525074,1723173097493,-880.65,0.00024394,5]
[334525075,1723173097502,-880.65,0.00024394,5]
[334525076,1723173097512,-707.7,0.00024394,5]
[334525077,1723173097521,-958.51,0.00024394,5]
[334525078,1723173097531,-958.51,0.00024394,5]
[334525079,1723173097540,-1790.02,0.00024394,5]
[334525080,1723173097549,-1790.02,0.00024394,5]
[334525081,1723173097559,-637.63,0.00024394,5]
[334525082,1723173097568,-637.63,0.00024394,5]
[334525083,1723173097577,-723.07,0.00024394,5]
[334525084,1723173097587,-723.07,0.00024394,5]
[334525085,1723173097597,-560.88,0.00024394,5]
[334525086,1723173097606,-560.88,0.00024394,5]
[334525087,1723173097616,-535.52,0.00024394,5]
[334525088,1723173097625,-535.52,0.00024394,5]
[334525089,1723173097635,-734.02,0.00024394,5]
[334525090,1723173097645,-1290.79,0.00024394,5]
[334525092,1723173097656,-1290.79,0.00024394,5]
[334525093,1723173097665,-816.35,0.00024394,5]
[334525094,1723173097674,-816.35,0.00024394,5]
[334525095,1723173097683,-1131.27,0.00024394,5]
[334525096,1723173097692,-1131.27,0.00024394,5]
[334525097,1723173097702,-810.07,0.00024394,5]
[334525098,1723173097711,-810.07,0.00024394,5]
[334525099,1723173097721,-500.0,0.00024394,5]
[334525100,1723173097730,-500.0,0.00024394,5]
[334525101,1723173097739,-2304.74,0.00024394,5]
[334525102,1723173097748,-2304.74,0.00024394,5]
[334525103,1723173097758,-500.0,0.00024394,5]
[334525104,1723173097767,-500.0,0.00024394,5]
[334525105,1723173097778,-940.54,0.00024394,5]
[334525106,1723173097787,-940.54,0.00024394,5]
[334525107,1723173097797,-1576.72,0.00024394,5]
[334525108,1723173097806,-1026.06,0.00024394,5]
[334525109,1723173097815,-1026.06,0.00024394,5]
[334525110,1723173097825,-2848.78,0.00024394,5]
[334525111,1723173097835,-500.0,0.00024394,5]
[334525112,1723173097844,-500.0,0.00024394,5]
[334525113,1723173097854,-206.77325171,0.00024394,5]
[334525114,1723173097863,-500.0,0.00024394,5]
[334525115,1723173097872,-500.0,0.00024394,5]
[334525116,1723173097881,-1017.24,0.00024394,5]
[334525117,1723173097891,-500.0,0.00024394,5]
[334525118,1723173097900,-837.62,0.00024394,5]
[334525119,1723173097909,-354.52508541,0.00024394,5]
[334525120,1723173097918,-2267.83,0.00024394,5]
[334525121,1723173097927,-2267.83,0.00024394,5]
[334525122,1723173097937,-1900.76,0.00024394,5]
[334525123,1723173097947,-745.32,0.00024394,5]
[334525124,1723173097956,-745.32,0.00024394,5]
[334525125,1723173097966,-858.69,0.00024394,5]
[334525126,1723173097975,-858.69,0.00024394,5]
[334525127,1723173097984,-500.0,0.00024394,5]
[334525128,1723173097994,-621.7,0.00024394,5]
[334525129,1723173098004,-621.7,0.00024394,5]
[334525130,1723173098013,-2017.79,0.00024394,5]
[334525131,1723173098023,-1365.06,0.00024394,5]
[334525132,1723173098032,-1365.06,0.00024394,5]
[334525133,1723173098042,-1897.92,0.00024394,5]
[334525134,1723173098051,-1897.92,0.00024394,5]
[334525135,1723173098060,-619.35,0.00024394,5]
[334525136,1723173098070,-612.32,0.00024394,5]
[334525137,1723173098079,-612.32,0.00024394,5]
[334525138,1723173098089,-1257.11,0.00024394,5]
[334525139,1723173098098,-500.0,0.00024394,5]
[334525140,1723173098107,-500.0,0.00024394,5]
[334525141,1723173098117,-1478.11,0.00024394,5]
[334525142,1723173098126,-1478.11,0.00024394,5]
[334525143,1723173098138,-500.0,0.00024394,5]
[334525144,1723173098147,-500.0,0.00024394,5]
[334525145,1723173098156,-554.61,0.00024394,5]
[334525146,1723173098166,-554.61,0.00024394,5]
[334525147,1723173098176,-500.0,0.00024394,5]
[334525148,1723173098185,-500.0,0.00024394,5]
[334525149,1723173098193,-500.0,0.00024394,5]
[334525150,1723173098203,-500.0,0.00024394,5]
[334525151,1723173098213,-500.0,0.00024394,5]
[334525152,1723173098223,-914.26,0.00024394,5]
[334525153,1723173098232,-914.26,0.00024394,5]
[334525154,1723173098242,-1516.34,0.00024394,5]
[334525155,1723173098251,-1516.34,0.00024394,5]
[334525156,1723173098261,-1719.92,0.00024394,5]
[334525157,1723173098271,-1075.16,0.00024394,5]
[334525158,1723173098280,-1719.92,0.00024394,5]
[334525159,1723173098290,-1075.16,0.00024394,5]
[334525160,1723173098299,-2561.56,0.00024394,2]
[334525161,1723173098308,-2476.74,0.00024394,5]
[334525162,1723173098317,-2476.74,0.00024394,5]
[334525163,1723173098327,-2084.94,0.00024394,5]
[334525164,1723173098336,-2084.94,0.00024394,5]
[334525165,1723173098346,-1168.69,0.00024394,5]
[334525166,1723173098355,-1168.69,0.00024394,5]
[334525167,1723173098364,-913.05,0.00024394,5]
[334525168,1723173098374,-913.05,0.00024394,5]
[334525169,1723173098383,-500.0,0.00024394,5]
[334525170,1723173098393,-186.53464179,0.00024394,5]
[334525171,1723173098402,-1771.96,0.00024394,5]
[334525172,1723173098411,-1771.96,0.00024394,5]
[334525173,1723173098420,-2058.38,0.00024394,5]
[334525174,1723173098429,-2058.38,0.00024394,5]
[334525175,1723173098439,-500.0,0.00024394,5]
[334525176,1723173098449,-500.0,0.00024394,5]
[334525177,1723173098581,-500.0,0.00024394,5]
[334525178,1723173098590,-278.42355286,0.00024394,5]
[334525179,1723173098600,-1446.58,0.00024394,5]
[334525180,1723173098610,-1446.58,0.00024394,5]
[334525181,1723173098620,-738.8,0.00024394,5]
[334525182,1723173098630,-5908.06,0.00024394,5]
[334525183,1723173098640,-2016.95,0.00024394,5]
[334525184,1723173098650,-2283.75,0.00024394,5]
[334525185,1723173098661,-2283.75,0.00024394,5]
[334525186,1723173098671,-555.7,0.00024394,5]
[334525187,1723173098681,-555.7,0.00024394,5]
[334525188,1723173098691,-587.54,0.00024394,5]
[334525189,1723173098701,-587.54,0.00024394,5]
[334525190,1723173098710,-1933.72,0.00024394,5]
[334525191,1723173098720,-1933.72,0.00024394,5]
[334525192,1723173098730,-2360.3,0.00024394,5]
[334525193,1723173098739,-2360.3,0.00024394,5]
[334525194,1723173098749,-500.0,0.00024394,5]
[334525195,1723173098758,-500.0,0.00024394,5]
[334525196,1723173098767,-634.45,0.00024394,5]
[334525197,1723173098777,-634.45,0.00024394,5]
[334525198,1723173098787,-955.44,0.00024394,5]
[334525199,1723173098796,-955.44,0.00024394,5]
[334525200,1723173098807,-553.49,0.00024394,5]
[334525201,1723173098816,-500.0,0.00024394,5]
[334525202,1723173098825,-849.58,0.00024394,5]
[334525203,1723173098835,-849.58,0.00024394,5]
[334525204,1723173098844,-169.10385258,0.00024394,5]
[334525205,1723173098853,-598.24,0.00024394,5]
[334525206,1723173098863,-598.24,0.00024394,5]
[334525207,1723173098872,-2539.06,0.00024394,5]
[334525208,1723173098882,-762.01,0.00024394,5]
[334525209,1723173098892,-762.01,0.00024394,5]
[334525210,1723173098901,-1491.08,0.00024394,5]
[334525211,1723173098910,-1491.08,0.00024394,5]
[334525212,1723173098921,-729.35,0.00024394,5]
[334525213,1723173098930,-729.35,0.00024394,5]
[334525214,1723173098940,-1747.68,0.00024394,5]
[334525215,1723173098950,-1029.94,0.00024394,5]
[334525216,1723173098960,-728.07,0.00024394,5]
[334525217,1723173098970,-728.07,0.00024394,5]
[334525218,1723173098979,-959.94,0.00024394,5]
[334525219,1723173098989,-3315.04,0.00024394,5]
[334525220,1723173098999,-2164.79,0.00024394,5]
[334525221,1723173099009,-2164.79,0.00024394,5]
[334525222,1723173099019,-500.0,0.00024394,5]
[334525223,1723173099029,-2760.09,0.00024394,5]
[334525224,1723173099038,-870.98,0.00024394,5]
[334525225,1723173099049,-1735.62,0.00024394,5]
[334525226,1723173099059,-1735.62,0.00024394,5]
[334525227,1723173099068,-2073.19,0.00024394,5]
[334525228,1723173099078,-796.36,0.00024394,5]
[334525229,1723173099087,-2073.19,0.00024394,5]
[334525230,1723173099098,-2598.71,0.00024394,5]
[334525231,1723173099107,-4419.52,0.00024394,5]
[334525232,1723173099116,-507.23,0.00024394,5]
[334525233,1723173099127,-507.23,0.00024394,5]
[334525234,1723173099137,-169.686424,0.00024394,7]
[334525235,1723173099147,-500.0,0.00024394,5]
[334525236,1723173099157,-504.04,0.00024394,5]
[334525237,1723173099166,-1623.9,0.00024394,5]
[334525238,1723173099176,-500.0,0.00024394,5]
[334525239,1723173099185,-500.0,0.00024394,5]
[334525240,1723173099196,-500.0,0.00024394,5]
[334525241,1723173099206,-3082.71,0.00024394,5]
[334525242,1723173099216,-3082.71,0.00024394,5]
[334525243,1723173099226,-500.0,0.00024394,5]
[334525244,1723173099236,-1742.45,0.00024394,5]
[334525245,1723173099246,-754.59,0.00024394,5]
[334525246,1723173099256,-1500.41,0.00024394,5]
[334525247,1723173099266,-931.62,0.00024394,5]
[334525248,1723173099276,-931.62,0.00024394,5]
[334525249,1723173099285,-7078.41,0.00024394,5]
[334525250,1723173099296,-577.95,0.00024394,5]
[334525251,1723173099305,-1366.36,0.00024394,5]
[334525252,1723173099315,-1366.36,0.00024394,5]
[334525253,1723173099325,-756.55,0.00024394,5]
[334525254,1723173099334,-1421.12,0.00024394,5]
[334525255,1723173099344,-1421.12,0.00024394,5]
[334525256,1723173099353,-12292.82,0.00024394,5]
[334525257,1723173099363,-605.71,0.00024394,5]
[334525258,1723173099372,-605.71,0.00024394,5]
[334525259,1723173099382,-500.0,0.00024394,5]
[334525260,1723173099392,-500.0,0.00024394,5]
[334525261,1723173099402,-569.12,0.00024394,5]
[334525262,1723173099411,-569.12,0.00024394,5]
[334525263,1723173099421,-511.96,0.00024394,5]
[334525264,1723173099431,-500.0,0.00024394,5]
[334525265,1723173099441,-500.0,0.00024394,5]
[334525266,1723173099452,-500.0,0.00024394,5]
[334525267,1723173099462,-912.55,0.00024394,5]
[334525268,1723173099471,-867.19,0.00024394,5]
[334525269,1723173099481,-548.86,0.00024394,5]
[334525270,1723173099491,-3027.54,0.00024394,5]
[334525271,1723173099500,-1115.98,0.00024394,5]
[334525272,1723173099510,-1195.6,0.00024394,5]
[334525273,1723173099519,-2152.11,0.00024394,5]
[334525274,1723173099529,-2152.11,0.00024394,5]
[334525275,1723173099539,-1093.44,0.00024394,5]
[334525276,1723173099549,-500.0,0.00024394,5]
[334525277,1723173099558,-500.0,0.00024394,5]
[334525278,1723173099568,-665.69,0.00024394,5]
[334525279,1723173099578,-618.25,0.00024394,5]
[334525280,1723173099588,-618.25,0.00024394,5]
[334525281,1723173099597,-500.0,0.00024394,5]
[334525282,1723173099608,-500.0,0.00024394,5]
[334525283,1723173099618,-2725.36,0.00024394,5]
[334525284,1723173099628,-730.2,0.00024394,5]
[334525285,1723173099638,-539.13,0.00024394,5]
[334525286,1723173099648,-684.84,0.00024394,5]
[334525287,1723173099658,-684.84,0.00024394,5]
[334525288,1723173099667,-2207.94,0.00024394,5]
[334525289,1723173099677,-1090.63,0.00024394,5]
[334525290,1723173099687,-1090.63,0.00024394,5]
[334525291,1723173099697,-2483.96,0.00024394,5]
[334525292,1723173099707,-3472.19,0.00024394,5]
[334525293,1723173099716,-1834.93,0.00024394,5]
[334525294,1723173099726,-2639.38,0.00024394,5]
[334525295,1723173099736,-889.01,0.00024394,5]
[334525296,1723173099746,-889.01,0.00024394,5]
[334525297,1723173099755,-12960.95,0.00024394,5]
[334525298,1723173099764,-500.0,0.00024395,5]
[334525299,1723173099774,-353.92,0.00024395,5]
[334525300,1723173099783,-500.0,0.00024395,5]
[334525301,1723173099792,-2642.87,0.00024395,5]
[334525302,1723173099802,-530.96,0.00024395,5]
[334525303,1723173099811,-500.0,0.00024395,5]
[334525304,1723173099821,-515.78834464,0.00024395,5]
[334525305,1723173099830,-2144.25,0.00024395,5]
[334525306,1723173099840,-1225.27,0.00024395,5]
[334525307,1723173099849,-1225.27,0.00024395,5]
[334525308,1723173099858,-1225.27,0.00024395,5]
[334525309,1723173099867,-1225.27,0.00024395,5]
[334525310,1723173099876,-1225.37897832,0.00024395,5]
[334525311,1723173099885,-192.32935031,0.00024395,5]
[334525312,1723173099894,-515.66,0.00024395,5]
[334525313,1723173099903,-515.66,0.00024395,5]
[334525314,1723173099912,-515.66,0.00024395,5]
[334525315,1723173099922,-515.66,0.00024395,5]
[334525316,1723173099931,-515.75385377,0.00024395,5]
[334525317,1723173099940,-180.78830728,0.00024395,5]
[334525318,1723173099950,-500.0,0.00024395,5]
[334525319,1723173099959,-383.56888173,0.00024395,5]
[334525320,1723173099968,-739.59,0.00024395,5]
[334525321,1723173099977,-739.59,0.00024395,5]
[334525322,1723173099986,-739.59,0.00024395,5]
[334525323,1723173099995,-739.59,0.00024395,5]
[334525324,1723173100004,-739.76434553,0.00024395,5]
[334525325,1723173100013,-500.0,0.00024395,5]
[334525326,1723173100022,-404.79600273,0.00024395,5]
[334525327,1723173100032,-728.64,0.00024395,5]
[334525328,1723173100041,-728.64,0.00024395,5]
[334525329,1723173100050,-728.64,0.00024395,5]
[334525330,1723173100059,-728.64,0.00024395,5]
[334525331,1723173100068,-728.66254364,0.00024395,5]
[334525332,1723173100077,-1126.08,0.00024395,5]
[334525333,1723173100086,-1126.08,0.00024395,5]
[334525334,1723173100095,-1126.08,0.00024395,5]
[334525335,1723173100105,-1126.08,0.00024395,5]
[334525336,1723173100114,-1126.2619025,0.00024395,5]
[334525337,1723173100123,-538.65,0.00024395,5]
[334525338,1723173100133,-538.65,0.00024395,5]
[334525339,1723173100143,-538.65,0.00024395,5]
[334525340,1723173100153,-538.65,0.00024395,5]
[334525341,1723173100162,-538.79578374,0.00024395,5]
[334525342,1723173100171,-1208.41,0.00024395,5]
[334525343,1723173100181,-1208.41,0.00024395,5]
[334525344,1723173100190,-1208.41,0.00024395,5]
[334525345,1723173100200,-1208.41,0.00024395,5]
[334525346,1723173100210,-1208.55816408,0.00024395,5]
[334525347,1723173100220,-566.76,0.00024395,5]
[334525348,1723173100229,-566.76,0.00024395,5]
[334525349,1723173100238,-566.76,0.00024395,5]
[334525350,1723173100248,-566.76,0.00024395,5]
[334525351,1723173100257,-566.8534507,0.00024395,5]
[334525352,1723173100266,-1083.97,0.00024395,5]
[334525353,1723173100276,-1083.97,0.00024395,5]
[334525354,1723173100285,-1083.97,0.00024395,5]
[334525355,1723173100294,-1083.97,0.00024395,5]
[334525356,1723173100304,-1084.19218228,0.00024395,5]
[334525357,1723173100313,-500.0,0.00024395,5]
[334525358,1723173100322,-500.0,0.00024395,5]
[334525359,1723173100331,-368.27415922,0.00024395,5]
[334525360,1723173100340,-577.99942447,0.00024395,5]
[334525361,1723173100349,-500.0,0.00024395,5]
[334525362,1723173100358,-500.0,0.00024395,5]
[334525363,1723173100367,-607.31900434,0.00024395,5]
[334525364,1723173100376,-633.29,0.00024395,5]
[334525365,1723173100385,-633.29,0.00024395,5]
[334525366,1723173100395,-633.29,0.00024395,5]
[334525367,1723173100404,-633.29,0.00024395,5]
[334525368,1723173100413,-633.30392948,0.00024395,5]
[334525369,1723173100422,-252.75394837,0.00024395,5]
[334525370,1723173100431,-717.63,0.00024395,5]
[334525371,1723173100440,-717.63,0.00024395,5]
[334525372,1723173100450,-717.63,0.00024395,5]
[334525373,1723173100459,-703.95,0.00024395,5]
[334525374,1723173100468,-717.63,0.00024395,5]
[334525375,1723173100478,-703.95,0.00024395,5]
[334525376,1723173100487,-717.84733282,0.00024395,5]
[334525377,1723173100499,-703.95,0.00024395,5]
[334525378,1723173100625,-703.95,0.00024395,5]
[334525379,1723173100638,-704.16868994,0.00024395,5]
[334525380,1723173100649,-589.38,0.00024395,5]
[334525381,1723173100660,-589.38,0.00024395,5]
[334525382,1723173100669,-589.38,0.00024395,5]
[334525383,1723173100679,-589.38,0.00024395,5]
[334525384,1723173100688,-589.58257492,0.00024395,5]
[334525385,1723173100696,-500.0,0.00024395,5]
[334525386,1723173100713,-500.0,0.00024395,5]
[334525387,1723173100722,-273.57620749,0.00024395,5]
[334525388,1723173100732,-170.06134088,0.00024395,5]
[334525389,1723173100741,-575.17,0.00024395,5]
[334525390,1723173100750,-575.17,0.00024395,5]
[334525391,1723173100759,-575.17,0.00024395,5]
[334525392,1723173100768,-575.17,0.00024395,5]
[334525393,1723173100778,-575.19953828,0.00024395,5]
[334525394,1723173100787,-833.58,0.00024395,5]
[334525395,1723173100796,-500.0,0.00024395,5]
[334525396,1723173100806,-500.0,0.00024395,5]
[334525397,1723173100815,-611.78356873,0.00024395,5]
[334525398,1723173100824,-593.74,0.00024395,5]
[334525399,1723173100833,-593.74,0.00024395,5]
[334525400,1723173100842,-593.74,0.00024395,5]
[334525401,1723173100851,-593.74,0.00024395,5]
[334525402,1723173100861,-593.83000643,0.00024395,5]
[334525403,1723173100870,-838.22,0.00024395,5]
[334525404,1723173100879,-843.29,0.00024395,5]
[334525405,1723173100888,-843.29,0.00024395,5]
[334525406,1723173100897,-843.29,0.00024395,5]
[334525407,1723173100907,-843.29,0.00024395,5]